bitfinex/quotes_BTCUSD_20241003
["timestamp","ask_amount","ask_price","bid_price","bid_amount"]
[1727935244776,0.237507,61299.0,61298.0,0.000819]
[1727935245004,0.35013383,61299.0,61298.0,0.000819]
[1727935246374,0.32455569,61299.0,61298.0,0.000819]
[1727935249757,0.34813429,61299.0,61298.0,0.000819]
[1727935250008,0.35013429,61299.0,61298.0,0.000819]
[1727935250687,0.34513429,61299.0,61298.0,0.000819]
[1727935251167,0.35013429,61299.0,61298.0,0.000819]
[1727935251389,0.34513429,61299.0,61298.0,0.000819]
[1727935251643,0.35013429,61299.0,61298.0,0.000819]
[1727935251855,0.4969179,61299.0,61298.0,0.000819]
[1727935252084,0.34813429,61299.0,61298.0,0.000819]
[1727935252354,0.34813429,61299.0,61298.0,0.097419]
[1727935252619,0.49691509,61299.0,61298.0,0.097419]
[1727935253076,0.35013429,61299.0,61298.0,0.097419]
[1727935253297,0.49491207,61299.0,61298.0,0.097419]
[1727935253517,0.34913429,61299.0,61298.0,0.097419]
[1727935253743,0.34413429,61299.0,61298.0,0.097419]
[1727935254180,0.34813429,61299.0,61298.0,0.097419]
[1727935255821,0.49488043,61299.0,61298.0,0.097419]
[1727935256075,0.44233429,61299.0,61298.0,0.000819]
[1727935256316,0.52075193,61299.0,61298.0,0.000819]
[1727935256609,0.52075193,61299.0,61296.0,0.000819]
[1727935256610,0.002,61297.0,61296.0,0.000819]
[1727935256844,0.002,61297.0,61286.0,0.0492659]
[1727935256845,0.31758169,61287.0,61286.0,0.0492659]
[1727935257273,0.48260732,61287.0,61286.0,0.0492659]
[1727935257549,0.48260732,61287.0,61274.0,0.0499693]
[1727935257550,0.230544,61282.0,61274.0,0.0499693]
[1727935257809,0.130558,61275.0,61274.0,0.0499693]
[1727935258046,0.21760669,61275.0,61274.0,0.0499693]
[1727935258309,0.130561,61274.0,61273.0,0.32591241]
[1727935258604,0.20384218,61274.0,61273.0,0.0813]
[1727935258818,0.130561,61274.0,61273.0,0.0813]
[1727935259499,0.17940115,61274.0,61273.0,0.0813]
[1727935259719,0.20498566,61274.0,61273.0,0.0833]
[1727935260188,0.15614551,61274.0,61273.0,0.0833]
[1727935260417,0.02558451,61274.0,61265.0,0.11518441]
[1727935260657,0.02558451,61274.0,61270.0,0.130568]
[1727935260884,0.02558451,61274.0,61269.0,0.130571]
[1727935261583,0.02558451,61274.0,61266.0,0.130576]
[1727935261584,0.130564,61273.0,61266.0,0.130576]
[1727935261816,0.130564,61273.0,61262.0,0.0499275]
[1727935261817,0.130575,61268.0,61262.0,0.0499275]
[1727935262046,0.08704869,61273.0,61264.0,0.24461241]
[1727935262298,0.130572,61269.0,61265.0,0.002]
[1727935262557,0.15615314,61271.0,61265.0,0.002]
[1727935262817,0.130572,61269.0,61260.0,0.0501294]
[1727935263066,0.001,61268.0,61262.0,0.006]
[1727935263322,0.001,61268.0,61263.0,0.130583]
[1727935263566,0.27019755,61271.0,61263.0,0.1694]
[1727935264039,0.130571,61270.0,61265.0,0.005]
[1727935264485,0.001,61268.0,61265.0,0.005]
[1727935264714,0.02658514,61271.0,61265.0,0.005]
[1727935264715,0.15715314,61271.0,61265.0,0.005]
[1727935265163,0.15815314,61271.0,61265.0,0.005]
[1727935265397,0.15715314,61271.0,61265.0,0.005]
[1727935265638,0.15615314,61271.0,61264.0,0.130582]
[1727935266072,0.15715314,61271.0,61264.0,0.130582]
[1727935266525,0.13057,61270.0,61263.0,0.299983]
[1727935266742,0.001,61268.0,61264.0,0.130581]
[1727935267003,0.261134,61272.0,61264.0,0.005]
[1727935267004,0.13058,61265.0,61264.0,0.005]
[1727935268167,0.1,61268.0,61260.0,0.000818]
[1727935268403,0.130583,61264.0,61260.0,0.000818]
[1727935268631,0.130583,61264.0,61263.0,0.006]
[1727935268866,0.21763169,61264.0,61263.0,0.006]
[1727935269095,0.21763169,61264.0,61260.0,0.000818]
[1727935269096,0.130588,61262.0,61260.0,0.000818]
[1727935269329,0.21763669,61261.0,61260.0,0.007818]
[1727935269805,0.21763669,61261.0,61260.0,0.000818]
[1727935269806,0.31763669,61261.0,61260.0,0.000818]
[1727935270042,0.34322596,61261.0,61260.0,0.000818]
[1727935270295,0.44080136,61261.0,61260.0,0.000818]
[1727935270524,0.42752596,61261.0,61260.0,0.000818]
[1727935270765,0.32259,61260.0,61259.0,0.000819]
[1727935270999,0.32059,61260.0,61259.0,0.000819]
[1727935271213,0.44226111,61260.0,61259.0,0.000819]
[1727935271468,0.32059,61260.0,61259.0,0.000819]
[1727935272636,0.33459,61260.0,61259.0,0.001819]
[1727935272857,0.3891983,61260.0,61259.0,0.001819]
[1727935273087,0.34059,61260.0,61259.0,0.001819]
[1727935273329,0.24459,61260.0,61259.0,0.001819]
[1727935273555,0.24459,61260.0,61259.0,0.000819]
[1727935273781,0.23059,61260.0,61259.0,0.000819]
[1727935274292,0.24459,61260.0,61259.0,0.000819]
[1727935274517,0.1,61260.0,61259.0,0.000819]
[1727935274990,0.24459,61260.0,61259.0,0.001819]
[1727935275246,0.24859,61260.0,61259.0,0.001819]
[1727935275466,0.104,61260.0,61259.0,0.000819]
[1727935275682,0.004,61260.0,61259.0,0.002819]
[1727935276149,0.004,61260.0,61259.0,0.000819]
[1727935276657,0.1,61265.0,61259.0,0.002819]
[1727935276909,0.1,61261.0,61259.0,0.002819]
[1727935277856,0.25618046,61261.0,61259.0,0.002819]
[1727935278077,0.25618046,61261.0,61259.0,0.000819]
[1727935278542,0.23059,61260.0,61259.0,0.000819]
[1727935278759,0.1,61260.0,61259.0,0.000819]
[1727935278978,0.1,61260.0,61259.0,0.001819]
[1727935279472,0.02559146,61261.0,61259.0,0.000819]
[1727935279694,0.12559146,61261.0,61259.0,0.000819]
[1727935279934,0.12559146,61261.0,61259.0,0.002819]
[1727935280169,0.15618046,61261.0,61259.0,0.002819]
[1727935280431,0.23059,61260.0,61259.0,0.002819]
[1727935281129,0.23059,61260.0,61259.0,0.000819]
[1727935281377,0.23059,61260.0,61259.0,0.001819]
[1727935281862,0.23059,61260.0,61259.0,0.000819]
[1727935282400,0.12559146,61261.0,61259.0,0.000819]
[1727935282607,0.1,61260.0,61259.0,0.002819]
[1727935284192,0.12559146,61261.0,61259.0,0.000819]
[1727935284419,0.1,61260.0,61259.0,0.001819]
[1727935285100,0.1,61260.0,61259.0,0.000819]
[1727935285318,0.1,61260.0,61259.0,0.002819]
[1727935285830,0.1,61262.0,61259.0,0.002819]
[1727935286074,0.1,61265.0,61259.0,0.002819]
[1727935286318,0.1,61261.0,61259.0,0.002819]
[1727935287020,0.230589,61261.0,61259.0,0.002819]
[1727935287246,0.230589,61261.0,61259.0,0.000819]
[1727935287686,0.230589,61261.0,61259.0,0.003819]
[1727935287687,0.13059,61261.0,61259.0,0.003819]
[1727935287919,0.1,61260.0,61259.0,0.003819]
[1727935288145,0.23059,61260.0,61259.0,0.000819]
[1727935288364,0.1,61260.0,61259.0,0.002819]
[1727935288851,0.1,61260.0,61259.0,0.000819]
[1727935289396,0.1,61260.0,61259.0,0.003819]
[1727935294093,0.02722943,61261.0,61259.0,0.003819]
[1727935294800,0.101638,61261.0,61259.0,0.003819]
[1727935295029,0.101638,61261.0,61259.0,0.000819]
[1727935295243,0.101638,61261.0,61259.0,0.002819]
[1727935295702,0.001638,61261.0,61260.0,0.29919]
[1727935296740,0.001638,61261.0,61260.0,0.30219]
[1727935298036,0.02722762,61261.0,61260.0,0.1716]
[1727935298682,0.02722762,61261.0,61260.0,0.30219]
[1727935299579,0.02722762,61261.0,61260.0,0.1716]
[1727935304912,0.001638,61261.0,61260.0,0.1716]
[1727935305808,0.001638,61261.0,61260.0,0.003]
[1727935307429,0.001638,61261.0,61259.0,0.000819]
[1727935307653,0.001638,61261.0,61260.0,0.002]
[1727935308085,0.02722826,61261.0,61260.0,0.002]
[1727935310562,0.15781726,61261.0,61259.0,0.000819]
[1727935311010,0.15781726,61261.0,61259.0,0.002819]
[1727935311454,0.15781726,61261.0,61259.0,0.000819]
[1727935311676,0.15781726,61261.0,61260.0,0.002]
[1727935313036,0.02722826,61261.0,61259.0,0.000819]
[1727935313278,0.13059,61260.0,61259.0,0.002819]
[1727935313929,0.13059,61260.0,61259.0,0.000819]
[1727935315045,0.132228,61260.0,61259.0,0.003819]
[1727935315269,0.18110059,61260.0,61259.0,0.003819]
[1727935315496,0.36826039,61260.0,61259.0,0.003819]
[1727935315722,0.58863588,61260.0,61259.0,0.003819]
[1727935315952,0.49089069,61260.0,61259.0,0.003819]
[1727935316399,0.61307218,61260.0,61259.0,0.000819]
[1727935316623,0.61407218,61260.0,61259.0,0.003819]
[1727935316845,0.61307218,61260.0,61259.0,0.003819]
[1727935317080,0.61307218,61260.0,61259.0,0.000819]
[1727935317300,0.61807218,61260.0,61259.0,0.000819]
[1727935317517,0.62207218,61260.0,61259.0,0.000819]
[1727935317986,0.64766529,61260.0,61259.0,0.000819]
[1727935318214,0.5254838,61260.0,61259.0,0.000819]
[1727935319429,0.5164838,61260.0,61259.0,0.000819]
[1727935319669,0.5194838,61260.0,61259.0,0.000819]
[1727935319894,0.5234838,61260.0,61259.0,0.000819]
[1727935322493,0.5254838,61260.0,61259.0,0.000819]
[1727935323141,0.5254838,61260.0,61259.0,0.00054211]
[1727935323645,0.5184838,61260.0,61259.0,0.00054211]
[1727935324144,0.5394838,61260.0,61259.0,0.00154211]
[1727935324410,0.5284838,61260.0,61259.0,0.00154211]
[1727935324681,0.5394838,61260.0,61259.0,0.00154211]
[1727935324900,0.426728,61260.0,61259.0,0.00154211]
[1727935325150,0.51389069,61260.0,61259.0,0.00154211]
[1727935325453,0.50189069,61260.0,61259.0,0.00054211]
[1727935325831,0.50189069,61260.0,61259.0,0.00154211]
[1727935326059,0.51389069,61260.0,61259.0,0.00154211]
[1727935326282,0.51189069,61260.0,61259.0,0.00154211]
[1727935326723,0.424728,61260.0,61259.0,0.00154211]
[1727935326985,0.34039069,61260.0,61259.0,0.00154211]
[1727935328116,0.36598495,61260.0,61259.0,0.00154211]
[1727935328592,0.48794639,61260.0,61259.0,0.00126522]
[1727935328840,0.4007837,61260.0,61259.0,0.00126522]
[1727935329062,0.37639291,61260.0,61259.0,0.00126522]
[1727935329351,0.27882226,61260.0,61259.0,0.00126522]
[1727935329566,0.26882226,61260.0,61259.0,0.00026522]
[1727935329807,0.25782226,61260.0,61259.0,0.00026522]
[1727935330032,0.26182226,61260.0,61259.0,0.00026522]
[1727935330260,0.26582226,61260.0,61259.0,0.00026522]
[1727935330484,0.26182226,61260.0,61259.0,0.00026522]
[1727935330703,0.33499808,61260.0,61259.0,0.00026522]
[1727935330925,0.33099808,61260.0,61259.0,0.00026522]
[1727935331153,0.33499808,61260.0,61259.0,0.00026522]
[1727935331370,0.26182226,61260.0,61259.0,0.00026522]
[1727935332063,0.31360573,61260.0,61259.0,0.00026522]
[1727935332285,0.26482226,61260.0,61259.0,0.00026522]
[1727935332519,0.26182226,61260.0,61259.0,0.00026522]
[1727935332745,0.26082226,61260.0,61259.0,0.00026522]
[1727935332936,0.26482226,61260.0,61259.0,0.00026522]
[1727935333138,0.26082226,61260.0,61259.0,0.00026522]
[1727935333412,0.26482226,61260.0,61259.0,0.00026522]
[1727935333630,0.31060573,61260.0,61259.0,0.00026522]
[1727935333856,0.30660573,61260.0,61259.0,0.00026522]
[1727935334079,0.26182226,61260.0,61259.0,0.00026522]
[1727935334330,0.25782226,61260.0,61259.0,0.00026522]
[1727935334760,0.28501147,61260.0,61259.0,0.00026522]
[1727935334976,0.28801147,61260.0,61259.0,0.00026522]
[1727935335406,0.236228,61260.0,61259.0,0.00026522]
[1727935335645,0.28801147,61260.0,61259.0,0.00026522]
[1727935336104,0.28401147,61260.0,61259.0,0.00026522]
[1727935336347,0.236228,61260.0,61259.0,0.00026522]
[1727935336567,0.235228,61260.0,61259.0,0.00026522]
[1727935336792,0.30840426,61260.0,61259.0,0.00026522]
[1727935337064,0.239228,61260.0,61259.0,0.00026522]
[1727935337751,0.243228,61260.0,61259.0,0.00026522]
[1727935337975,0.232228,61260.0,61259.0,0.00026522]
[1727935338252,0.07901968,61260.0,61259.0,0.16646522]
[1727935338475,0.03023088,61260.0,61259.0,0.31978133]
[1727935338695,0.02723088,61260.0,61259.0,0.31978133]
[1727935338916,0.03023088,61260.0,61259.0,0.31978133]
[1727935339143,0.03423088,61260.0,61259.0,0.31978133]
[1727935339592,0.02723088,61260.0,61259.0,0.31978133]
[1727935339820,0.02923088,61260.0,61259.0,0.32578133]
[1727935342569,0.02823088,61260.0,61259.0,0.31978133]
[1727935342857,0.02823088,61260.0,61259.0,0.32578133]
[1727935343107,0.02923088,61260.0,61259.0,0.32578133]
[1727935344866,0.003638,61260.0,61259.0,0.32578133]
[1727935345126,0.003638,61260.0,61259.0,0.49096804]
[1727935345593,0.003638,61260.0,61259.0,0.48496804]
[1727935345594,0.002638,61260.0,61259.0,0.48496804]
[1727935345872,0.003638,61260.0,61259.0,0.49096804]
[1727935346321,0.002638,61260.0,61259.0,0.48496804]
[1727935346538,0.001638,61260.0,61259.0,0.48496804]
[1727935346802,0.003638,61260.0,61259.0,0.49096804]
[1727935347217,0.002638,61260.0,61259.0,0.49096804]
[1727935348118,0.02822427,61260.0,61259.0,0.48496804]
[1727935348337,0.02822427,61260.0,61259.0,0.49096804]
[1727935348586,0.02822427,61260.0,61259.0,0.49069115]
[1727935349769,0.02922427,61260.0,61259.0,0.49069115]
[1727935350210,0.02922427,61260.0,61259.0,0.49151015]
[1727935352951,0.002,61260.0,61259.0,0.49651015]
[1727935353171,0.001638,61261.0,61260.0,0.36591]
[1727935353388,0.001638,61261.0,61260.0,0.52909671]
[1727935354498,0.002638,61261.0,61260.0,0.52909671]
[1727935355057,0.002638,61261.0,61260.0,0.54309671]
[1727935355268,0.003638,61261.0,61260.0,0.54309671]
[1727935355695,0.003638,61261.0,61260.0,0.52909671]
[1727935355696,0.002638,61261.0,61260.0,0.52909671]
[1727935355911,0.24461241,61271.0,61270.0,0.153569]
[1727935356156,0.24461241,61271.0,61270.0,0.52740572]
[1727935356341,0.001638,61274.0,61273.0,0.130563]
[1727935356770,0.001638,61274.0,61267.0,0.261151]
[1727935356987,0.001638,61274.0,61273.0,0.130563]
[1727935358242,0.001638,61274.0,61273.0,0.143563]
[1727935358453,0.001638,61274.0,61273.0,0.14328611]
[1727935358873,0.002638,61274.0,61273.0,0.14328611]
[1727935359317,0.001638,61274.0,61273.0,0.14328611]
[1727935359524,0.002638,61274.0,61273.0,0.14928611]
[1727935359977,0.001638,61274.0,61273.0,0.14328611]
[1727935360184,0.002638,61274.0,61273.0,0.13628611]
[1727935360397,0.001638,61274.0,61273.0,0.13028611]
[1727935360601,0.002638,61274.0,61273.0,0.14428611]
[1727935360832,0.003638,61274.0,61273.0,0.15028611]
[1727935361727,0.002638,61274.0,61273.0,0.13628611]
[1727935361934,0.003638,61274.0,61273.0,0.15028611]
[1727935362143,0.002638,61274.0,61273.0,0.14428611]
[1727935362357,0.003638,61274.0,61273.0,0.15028611]
[1727935362772,0.002638,61274.0,61273.0,0.14428611]
[1727935362985,0.002638,61274.0,61273.0,0.14997304]
[1727935362986,0.003638,61274.0,61273.0,0.14997304]
[1727935368062,0.0292205,61274.0,61273.0,0.14997304]
[1727935372914,0.0292205,61274.0,61273.0,0.15079104]
[1727935376836,0.003638,61274.0,61273.0,0.15079104]
[1727935380161,0.02922087,61274.0,61273.0,0.15079104]
[1727935380630,0.15978187,61274.0,61273.0,0.020818]
[1727935380856,0.33108187,61274.0,61273.0,0.020818]
[1727935381080,0.43108187,61274.0,61273.0,0.020818]
[1727935381310,0.5181945,61274.0,61273.0,0.020818]
[1727935381767,0.5171945,61274.0,61273.0,0.006818]
[1727935381992,0.5161945,61274.0,61273.0,0.000818]
[1727935382207,0.5161945,61274.0,61273.0,0.004818]
[1727935382423,0.5161945,61274.0,61273.0,0.000818]
[1727935382940,0.5161945,61274.0,61273.0,0.001818]
[1727935383171,0.5171945,61274.0,61273.0,0.008818]
[1727935383592,0.42908187,61274.0,61273.0,0.001818]
[1727935383807,0.42908187,61274.0,61273.0,0.003818]
[1727935384241,0.02722087,61274.0,61273.0,0.003818]
[1727935384695,0.02722087,61274.0,61273.0,0.002818]
[1727935384919,0.001638,61274.0,61273.0,0.133381]
[1727935385149,0.001638,61274.0,61273.0,0.135381]
[1727935385623,0.001638,61274.0,61273.0,0.133381]
[1727935386115,0.001638,61274.0,61273.0,0.136381]
[1727935386342,0.001638,61274.0,61273.0,0.005818]
[1727935386843,0.001638,61274.0,61273.0,0.003818]
[1727935387079,0.001638,61274.0,61273.0,0.006818]
[1727935387314,0.001638,61274.0,61273.0,0.27016475]
[1727935387572,0.001638,61274.0,61273.0,0.53285146]
[1727935387786,0.001638,61274.0,61273.0,0.61295146]
[1727935388015,0.001638,61274.0,61273.0,0.60995146]
[1727935388247,0.02721938,61274.0,61273.0,0.61395146]
[1727935388714,0.02721938,61274.0,61273.0,0.60695146]
[1727935389127,0.02821938,61274.0,61273.0,0.61095146]
[1727935389361,0.02821938,61274.0,61273.0,0.60695146]
[1727935389362,0.02721938,61274.0,61273.0,0.60695146]
[1727935389851,0.02821938,61274.0,61273.0,0.61095146]
[1727935390081,0.02821938,61274.0,61273.0,0.62495146]
[1727935390305,0.02821938,61274.0,61273.0,0.62095146]
[1727935390306,0.02721938,61274.0,61273.0,0.62095146]
[1727935390828,0.02721938,61274.0,61273.0,0.60695146]
[1727935391067,0.02721938,61274.0,61273.0,0.62095146]
[1727935391318,0.02721938,61274.0,61273.0,0.145381]
[1727935391556,0.15778038,61274.0,61273.0,0.000818]
[1727935391849,0.15778038,61274.0,61273.0,0.014818]
[1727935391850,0.33518038,61274.0,61273.0,0.014818]
[1727935392100,0.33618038,61274.0,61273.0,0.021818]
[1727935392360,0.33618038,61274.0,61273.0,0.014818]
[1727935392619,0.33518038,61274.0,61273.0,0.014818]
[1727935392868,0.33618038,61274.0,61273.0,0.021818]
[1727935393123,0.33618038,61274.0,61273.0,0.000818]
[1727935393124,0.33518038,61274.0,61273.0,0.000818]
[1727935393347,0.33618038,61274.0,61273.0,0.018818]
[1727935393590,0.33618038,61274.0,61273.0,0.014818]
[1727935393814,0.33518038,61274.0,61273.0,0.004818]
[1727935394301,0.33518038,61274.0,61273.0,0.008818]
[1727935394779,0.309599,61274.0,61273.0,0.008818]
[1727935395728,0.309599,61274.0,61273.0,0.004818]
[1727935395964,0.310599,61274.0,61273.0,0.004818]
[1727935396210,0.309599,61274.0,61273.0,0.000818]
[1727935396687,0.309599,61274.0,61273.0,0.002818]
[1727935397402,0.309599,61274.0,61273.0,0.005818]
[1727935398135,0.001638,61274.0,61273.0,0.136381]
[1727935398586,0.001638,61274.0,61273.0,0.13795075]
[1727935398815,0.001638,61274.0,61273.0,0.13595075]
[1727935399031,0.001638,61274.0,61273.0,0.13295075]
[1727935399252,0.002638,61274.0,61273.0,0.13995075]
[1727935399473,0.02822025,61274.0,61273.0,0.13995075]
[1727935399689,0.02822025,61274.0,61273.0,0.145381]
[1727935399917,0.02822025,61274.0,61273.0,0.138381]
[1727935400137,0.02922025,61274.0,61273.0,0.152381]
[1727935402135,0.02922025,61274.0,61273.0,0.31556771]
[1727935405077,0.003638,61274.0,61273.0,0.39516771]
[1727935406754,0.003638,61274.0,61273.0,0.48886771]
[1727935407699,0.003638,61274.0,61273.0,0.51186771]
[1727935407943,0.003638,61274.0,61273.0,0.49786771]
[1727935407944,0.002638,61274.0,61273.0,0.49786771]
[1727935408225,0.002638,61274.0,61273.0,0.51186771]
[1727935408666,0.002638,61274.0,61273.0,0.49786771]
[1727935408912,0.002638,61274.0,61273.0,0.51186771]
[1727935409355,0.02821845,61274.0,61273.0,0.49786771]
[1727935409565,0.02721845,61274.0,61273.0,0.49086771]
[1727935409792,0.02821845,61274.0,61273.0,0.49986771]
[1727935410706,0.02821845,61274.0,61273.0,0.51386771]
[1727935411186,0.02721845,61274.0,61273.0,0.50486771]
[1727935411680,0.02721845,61274.0,61273.0,0.51386771]
[1727935411681,0.02821845,61274.0,61273.0,0.51386771]
[1727935411897,0.02721845,61274.0,61273.0,0.50486771]
[1727935412376,0.02821845,61274.0,61273.0,0.51386771]
[1727935414722,0.002638,61274.0,61273.0,0.51386771]
[1727935415151,0.002638,61274.0,61273.0,0.51586771]
[1727935418127,0.02821855,61274.0,61273.0,0.51586771]
[1727935424484,0.02821855,61274.0,61273.0,0.51386771]
[1727935424717,0.002638,61274.0,61273.0,0.51386771]
[1727935425868,0.002638,61274.0,61273.0,0.51586771]
[1727935428129,0.02821844,61274.0,61273.0,0.51586771]
[1727935430438,0.02821844,61274.0,61273.0,0.31756771]
[1727935430656,0.20691844,61274.0,61273.0,0.154381]
[1727935432065,0.02821844,61274.0,61273.0,0.154381]
[1727935437056,0.002638,61274.0,61273.0,0.154381]
[1727935441473,0.02822062,61274.0,61273.0,0.154381]
[1727935442356,0.02822062,61274.0,61273.0,0.31756771]
[1727935442788,0.02822062,61274.0,61273.0,0.34056771]
[1727935442999,0.02822062,61274.0,61273.0,0.51086771]
[1727935443443,0.02822062,61274.0,61273.0,0.55980201]
[1727935443932,0.02822062,61274.0,61273.0,0.56180201]
[1727935444803,0.002638,61274.0,61273.0,0.56180201]
[1727935445446,0.002638,61274.0,61273.0,0.5598565]
[1727935446116,0.002638,61274.0,61273.0,0.5618565]
[1727935447410,0.002638,61274.0,61273.0,0.51286771]
[1727935447841,0.002638,61274.0,61273.0,0.51086771]
[1727935448070,0.02821876,61274.0,61273.0,0.5598565]
[1727935448289,0.02821876,61274.0,61273.0,0.51086771]
[1727935448504,0.02821876,61274.0,61273.0,0.34056771]
[1727935452870,0.02821876,61274.0,61273.0,0.154381]
[1727935453083,0.02821876,61274.0,61273.0,0.023818]
[1727935453525,0.25697976,61274.0,61273.0,0.023818]
[1727935454136,0.12641876,61274.0,61273.0,0.023818]
[1727935454387,0.12641876,61274.0,61273.0,0.009818]
[1727935454627,0.12641876,61274.0,61273.0,0.020818]
[1727935454889,0.231399,61274.0,61273.0,0.020818]
[1727935455125,0.308099,61274.0,61273.0,0.009818]
[1727935455354,0.308099,61274.0,61273.0,0.000818]
[1727935455355,0.176538,61274.0,61273.0,0.000818]
[1727935455565,0.177538,61274.0,61273.0,0.014818]
[1727935455746,0.176538,61274.0,61273.0,0.006818]
[1727935455959,0.176538,61274.0,61273.0,0.000818]
[1727935456165,0.177538,61274.0,61273.0,0.006818]
[1727935456368,0.176538,61274.0,61273.0,0.000818]
[1727935456801,0.177538,61274.0,61273.0,0.006818]
[1727935457016,0.176538,61274.0,61273.0,0.000818]
[1727935457241,0.176538,61274.0,61273.0,0.006818]
[1727935457674,0.176538,61274.0,61273.0,0.000818]
[1727935457936,0.176538,61274.0,61273.0,0.006818]
[1727935458473,0.177538,61274.0,61273.0,0.006818]
[1727935458658,0.176538,61274.0,61273.0,0.006818]
[1727935458882,0.177538,61274.0,61273.0,0.012818]
[1727935459355,0.2031219,61274.0,61273.0,0.012818]
[1727935460252,0.2031219,61274.0,61273.0,0.006818]
[1727935460693,0.2031219,61274.0,61273.0,0.012818]
[1727935461162,0.2031219,61274.0,61273.0,0.006818]
[1727935461392,0.2031219,61274.0,61273.0,0.012818]
[1727935461630,0.2021219,61274.0,61273.0,0.006818]
[1727935462069,0.2031219,61274.0,61273.0,0.006818]
[1727935462301,0.2021219,61274.0,61273.0,0.000818]
[1727935462519,0.2021219,61274.0,61273.0,0.006818]
[1727935462520,0.2031219,61274.0,61273.0,0.006818]
[1727935463005,0.2021219,61274.0,61273.0,0.000818]
[1727935463264,0.4336829,61274.0,61273.0,0.006818]
[1727935463515,0.4336829,61274.0,61270.0,0.783418]
[1727935463516,0.399267,61271.0,61270.0,0.783418]
[1727935463791,0.486461,61271.0,61270.0,0.783418]
[1727935464023,0.51597035,61271.0,61270.0,0.618318]
[1727935464284,0.393961,61271.0,61270.0,0.618318]
[1727935464775,0.393961,61271.0,61270.0,0.525118]
[1727935465559,0.49145008,61271.0,61270.0,0.525118]
[1727935465814,0.54911658,61271.0,61270.0,0.525118]
[1727935466064,0.4496275,61271.0,61270.0,0.525118]
[1727935466278,0.57155146,61271.0,61270.0,0.525118]
[1727935466525,0.54906364,61271.0,61270.0,0.525118]
[1727935466747,0.54706364,61271.0,61270.0,0.525118]
[1727935467480,0.4546275,61271.0,61270.0,0.526118]
[1727935467976,0.4496275,61271.0,61270.0,0.525118]
[1727935468439,0.52764984,61271.0,61270.0,0.526118]
[1727935469383,0.4546275,61271.0,61270.0,0.526118]
[1727935470474,0.5032864,61271.0,61270.0,0.526118]
[1727935470920,0.4546275,61271.0,61270.0,0.526118]
[1727935478090,0.48021872,61271.0,61270.0,0.526118]
[1727935478570,0.48021872,61271.0,61270.0,0.526936]
[1727935484733,0.4546275,61271.0,61270.0,0.526936]
[1727935487872,0.40894088,61271.0,61270.0,0.526936]
[1727935488357,0.245567,61271.0,61270.0,0.526936]
[1727935489247,0.27115663,61271.0,61270.0,0.526936]
[1727935491705,0.27279463,61271.0,61270.0,0.526936]
[1727935496106,0.247205,61271.0,61270.0,0.526936]
[1727935497916,0.29580488,61271.0,61270.0,0.526936]
[1727935498569,0.32010482,61271.0,61270.0,0.526936]
[1727935499212,0.34569463,61271.0,61270.0,0.526936]
[1727935499429,0.36999457,61271.0,61270.0,0.526936]
[1727935501143,0.27279481,61271.0,61270.0,0.526936]
[1727935501371,0.36999457,61271.0,61270.0,0.526936]
[1727935502443,0.27279481,61271.0,61270.0,0.526936]
[1727935503507,0.39429451,61271.0,61270.0,0.526936]
[1727935504642,0.27279481,61271.0,61270.0,0.526936]
[1727935504899,0.247205,61271.0,61270.0,0.526936]
[1727935509416,0.27279468,61271.0,61270.0,0.526936]
[1727935509636,0.35996248,61271.0,61270.0,0.526936]
[1727935510756,0.27279468,61271.0,61270.0,0.526936]
[1727935510974,0.35996248,61271.0,61270.0,0.526936]
[1727935512986,0.35996248,61271.0,61270.0,0.626036]
[1727935512987,0.50663076,61271.0,61270.0,0.626036]
[1727935516003,0.35996248,61271.0,61270.0,0.626036]
[1727935517011,0.3343728,61271.0,61270.0,0.626036]
[1727935520233,0.35996219,61271.0,61270.0,0.626036]
[1727935520711,0.50662389,61271.0,61270.0,0.626036]
[1727935524262,0.35996219,61271.0,61270.0,0.626036]
[1727935524690,0.3343728,61271.0,61270.0,0.626036]
[1727935529451,0.35996213,61271.0,61270.0,0.626036]
[1727935533209,0.04222733,61271.0,61270.0,0.708936]
[1727935533426,0.04222733,61271.0,61270.0,0.839505]
[1727935533660,0.001638,61274.0,61270.0,0.526936]
[1727935533933,0.001638,61274.0,61273.0,0.1813]
[1727935534135,0.001638,61274.0,61273.0,0.311863]
[1727935534392,0.001638,61274.0,61273.0,0.1663]
[1727935534818,0.001638,61274.0,61273.0,0.296863]
[1727935536552,0.001638,61274.0,61273.0,0.302863]
[1727935536754,0.001638,61274.0,61273.0,0.296863]
[1727935536961,0.002638,61274.0,61273.0,0.314863]
[1727935537681,0.002638,61274.0,61273.0,0.4020308]
[1727935538654,0.04887785,61289.0,61279.0,0.1747]
[1727935538891,0.04887785,61293.0,61283.0,0.1747]
[1727935539131,0.33435677,61294.0,61285.0,0.305237]
[1727935539132,0.130525,61291.0,61285.0,0.305237]
[1727935539413,0.130525,61291.0,61287.0,0.0938]
[1727935539896,0.26104,61294.0,61287.0,0.0938]
[1727935540137,0.130523,61292.0,61288.0,0.0833]
[1727935540381,0.261038,61294.0,61289.0,0.0953]
[1727935541090,0.1,61291.0,61289.0,0.0953]
[1727935541796,0.1,61291.0,61289.0,0.1033]
[1727935542042,0.130519,61294.0,61289.0,0.1033]
[1727935542269,0.26103,61296.0,61291.0,0.228124]
[1727935542270,0.1,61296.0,61291.0,0.228124]
[1727935542496,0.1,61299.0,61292.0,0.0976]
[1727935542729,0.1,61294.0,61292.0,0.0976]
[1727935543217,0.1,61294.0,61292.0,0.22812]
[1727935543437,0.1,61294.0,61293.0,0.1768]
[1727935543651,0.12557793,61294.0,61293.0,0.1768]
[1727935543866,0.02557793,61294.0,61293.0,0.1768]
[1727935544085,0.02557793,61294.0,61293.0,0.30732]
[1727935544354,0.130509,61299.0,61293.0,0.0832]
[1727935544565,0.24625041,61300.0,61294.0,0.0936]
[1727935544816,0.001638,61300.0,61297.0,0.0936]
[1727935546158,0.001638,61300.0,61299.0,0.0976]
[1727935546159,0.101638,61300.0,61299.0,0.0976]
[1727935547309,0.001638,61300.0,61299.0,0.0976]
[1727935547516,0.001638,61300.0,61299.0,0.1046]
[1727935547722,0.02721377,61300.0,61299.0,0.1046]